fUSD/lending_fUSD_20250112
["ID","MTS","AMOUNT","RATE_DAILY","PERIOD"]
[348592704,1736655034479,-1013.59,9.992e-05,2]
[348592705,1736655034488,-500.0,9.992e-05,2]
[348592706,1736655034498,-1097.64,9.992e-05,2]
[348592707,1736655034507,-500.0,9.992e-05,2]
[348592708,1736655034518,-2897.45,9.992e-05,2]
[348592709,1736655034527,-2174.2,9.992e-05,2]
[348592710,1736655034536,-675.77,9.992e-05,2]
[348592711,1736655034545,-500.0,9.992e-05,2]
[348592712,1736655034554,-2643.07,9.992e-05,2]
[348592713,1736655034563,-500.0,9.992e-05,2]
[348592714,1736655034572,-1023.51,9.992e-05,2]
[348592715,1736655034581,-1555.0,9.992e-05,2]
[348592716,1736655034591,-500.0,9.992e-05,2]
[348592717,1736655034600,-954.03,9.993e-05,2]
[348592718,1736655034608,-729.88,9.993e-05,2]
[348592719,1736655034617,-617.35,9.993e-05,2]
[348592720,1736655034626,-673.16,9.993e-05,2]
[348592721,1736655034637,-2233.75,9.993e-05,2]
[348592722,1736655034646,-500.0,9.993e-05,2]
[348592723,1736655034655,-500.0,9.993e-05,2]
[348592724,1736655034665,-915.9,9.993e-05,2]
[348592725,1736655034674,-1714.18,9.993e-05,2]
[348592726,1736655034683,-2088.32,9.993e-05,2]
[348592727,1736655034692,-1000.0,9.993e-05,2]
[348592728,1736655034701,-1389.91,9.993e-05,2]
[348592729,1736655034711,-686.35,9.993e-05,2]
[348592730,1736655034721,-500.0,9.995e-05,2]
[348592731,1736655034731,-896.75,9.995e-05,2]
[348592732,1736655034742,-500.0,9.996e-05,2]
[348592733,1736655034752,-1966.92,9.996e-05,2]
[348592734,1736655034761,-744.99,9.996e-05,2]
[348592735,1736655034771,-2696.46,9.996e-05,2]
[348592736,1736655034781,-1244.71,9.996e-05,2]
[348592737,1736655034791,-2514.94,9.996e-05,2]
[348592738,1736655034800,-5908.81,9.996e-05,2]
[348592739,1736655034809,-500.0,9.996e-05,2]
[348592740,1736655034818,-618.77,9.996e-05,2]
[348592741,1736655034827,-992.57,9.996e-05,2]
[348592742,1736655034836,-1900.81,9.996e-05,2]
[348592743,1736655034845,-500.0,9.996e-05,2]
[348592744,1736655034854,-3824.55,9.996e-05,2]
[348592745,1736655034863,-1174.51,9.996e-05,2]
[348592746,1736655034872,-1696.45,9.996e-05,2]
[348592747,1736655034881,-1299.76,9.996e-05,2]
[348592748,1736655034890,-636.92,9.997e-05,2]
[348592749,1736655034899,-500.0,9.997e-05,2]
[348592750,1736655034909,-500.0,9.997e-05,2]
[348592751,1736655034918,-500.0,9.997e-05,2]
[348592752,1736655034927,-501.10992373,9.997e-05,2]
[348592753,1736655034936,-500.0,9.997e-05,2]
[348592754,1736655034944,-501.22201616,9.997e-05,2]
[348592755,1736655034953,-500.0,9.997e-05,2]
[348592756,1736655034963,-211.79700741,9.997e-05,2]
[348592757,1736655034973,-515.78,9.997e-05,2]
[348592758,1736655034983,-500.0,9.997e-05,2]
[348592759,1736655034993,-500.0,9.997e-05,2]
[348592760,1736655035002,-578.58431797,9.997e-05,2]
[348592761,1736655035012,-500.0,9.997e-05,2]
[348592762,1736655035023,-500.0,9.997e-05,2]
[348592763,1736655035033,-500.0,9.997e-05,2]
[348592764,1736655035041,-500.0,9.997e-05,2]
[348592765,1736655035052,-501.15536352,9.997e-05,2]
[348592766,1736655035062,-500.0,9.997e-05,2]
[348592767,1736655035072,-500.0,9.997e-05,2]
[348592768,1736655035081,-500.0,9.997e-05,2]
[348592769,1736655035090,-500.0,9.997e-05,2]
[348592770,1736655035099,-500.0,9.997e-05,2]
[348592771,1736655035108,-949.05,9.997e-05,2]
[348592772,1736655035117,-500.0,9.997e-05,2]
[348592773,1736655035126,-500.0,9.997e-05,2]
[348592774,1736655035136,-500.0,9.997e-05,2]
[348592775,1736655035147,-773.28,9.997e-05,2]
[348592776,1736655035155,-500.0,9.997e-05,2]
[348592777,1736655035164,-500.0,9.997e-05,2]
[348592778,1736655035175,-508.77,9.997e-05,2]
[348592779,1736655035184,-594.33,9.997e-05,2]
[348592780,1736655035194,-500.0,9.997e-05,2]
[348592781,1736655035205,-500.0,9.997e-05,2]
[348592782,1736655035215,-500.0,9.997e-05,2]
[348592783,1736655035224,-500.93499047,9.997e-05,2]
[348592784,1736655035234,-500.0,9.997e-05,2]
[348592785,1736655035244,-500.0,9.997e-05,2]
[348592786,1736655035254,-500.0,9.997e-05,2]
[348592787,1736655035264,-500.0,9.997e-05,2]
[348592788,1736655035274,-500.0,9.997e-05,2]
[348592789,1736655035285,-500.0,9.997e-05,2]
[348592790,1736655035295,-555.07,9.997e-05,2]
[348592791,1736655035305,-505.68118884,9.997e-05,2]
[348592792,1736655035315,-500.0,9.997e-05,2]
[348592793,1736655035326,-500.0,9.997e-05,2]
[348592794,1736655035335,-775.79,9.997e-05,2]
[348592795,1736655035344,-500.0,9.997e-05,2]
[348592796,1736655035355,-500.0,9.997e-05,2]
[348592797,1736655035365,-500.0,9.997e-05,2]
[348592798,1736655035377,-381.05715982,9.997e-05,2]
[348592799,1736655035387,-578.44,9.997e-05,2]
[348592800,1736655035397,-500.0,9.997e-05,2]
[348592801,1736655035407,-734.17,9.997e-05,2]
[348592802,1736655035417,-500.0,9.997e-05,2]
[348592803,1736655035427,-500.0,9.997e-05,2]
[348592804,1736655035436,-500.0,9.997e-05,2]
[348592805,1736655035446,-500.0,9.997e-05,2]
[348592806,1736655035456,-500.0,9.997e-05,2]
[348592807,1736655035466,-500.0,9.997e-05,2]
[348592808,1736655035477,-500.0,9.997e-05,2]
[348592809,1736655035486,-500.0,9.997e-05,2]
[348592810,1736655035495,-500.0,9.997e-05,2]
[348592811,1736655035505,-500.0,9.997e-05,2]
[348592812,1736655035514,-523.76245299,9.997e-05,2]
[348592813,1736655035523,-500.0,9.997e-05,2]
[348592814,1736655035533,-500.0,9.997e-05,2]
[348592815,1736655035542,-506.14747057,9.997e-05,2]
[348592816,1736655035551,-500.0,9.997e-05,2]
[348592817,1736655035560,-500.0,9.997e-05,2]
[348592818,1736655035575,-500.0,9.997e-05,2]
[348592819,1736655035584,-742.9,9.997e-05,2]
[348592820,1736655035593,-500.0,9.997e-05,2]
[348592821,1736655035603,-500.0,9.997e-05,2]
[348592822,1736655035612,-500.0,9.997e-05,2]
[348592823,1736655035621,-500.0,9.997e-05,2]
[348592824,1736655035630,-344.59978276,9.997e-05,2]
[348592825,1736655035640,-500.0,9.997e-05,2]
[348592826,1736655035650,-500.0,9.997e-05,2]
[348592827,1736655035661,-500.0,9.997e-05,2]
[348592828,1736655035670,-500.0,9.997e-05,2]
[348592829,1736655035679,-695.56,9.997e-05,2]
[348592830,1736655035688,-500.0,9.997e-05,2]
[348592831,1736655035697,-500.0,9.997e-05,2]
[348592832,1736655035707,-500.0,9.997e-05,2]
[348592833,1736655035716,-500.0,9.997e-05,2]
[348592834,1736655035725,-837.46,9.997e-05,2]
[348592835,1736655035734,-855.28,9.997e-05,2]
[348592836,1736655035743,-500.0,9.997e-05,2]
[348592837,1736655035753,-517.84,9.997e-05,2]
[348592838,1736655035762,-500.0,9.997e-05,2]
[348592839,1736655035771,-500.0,9.997e-05,2]
[348592840,1736655035780,-500.0,9.997e-05,2]
[348592841,1736655035789,-500.0,9.997e-05,2]
[348592842,1736655035798,-500.0,9.997e-05,2]
[348592843,1736655035807,-825.85,9.997e-05,2]
[348592844,1736655035816,-500.0,9.997e-05,2]
[348592845,1736655035825,-500.0,9.997e-05,2]
[348592846,1736655035835,-500.0,9.997e-05,2]
[348592847,1736655035844,-500.0,9.997e-05,2]
[348592848,1736655035853,-500.0,9.997e-05,2]
[348592849,1736655035862,-500.0,9.997e-05,2]
[348592850,1736655035870,-500.0,9.997e-05,2]
[348592851,1736655035879,-500.0,9.997e-05,2]
[348592852,1736655035888,-500.0,9.997e-05,2]
[348592853,1736655035898,-500.0,9.997e-05,2]
[348592854,1736655035906,-500.0,9.997e-05,2]
[348592855,1736655035915,-667.21,9.997e-05,2]
[348592856,1736655035925,-502.68433515,9.997e-05,2]
[348592857,1736655035934,-500.0,9.997e-05,2]
[348592858,1736655035943,-500.0,9.997e-05,2]
[348592859,1736655035953,-500.0,9.997e-05,2]
[348592860,1736655035963,-500.0,9.997e-05,2]
[348592861,1736655035973,-500.0,9.997e-05,2]
[348592862,1736655035982,-500.0,9.997e-05,2]
[348592863,1736655035991,-500.0,9.997e-05,2]
[348592864,1736655036001,-504.62468573,9.997e-05,2]
[348592865,1736655036010,-506.19735365,9.997e-05,2]
[348592866,1736655036019,-504.89189713,9.997e-05,2]
[348592867,1736655036031,-556.65118873,9.997e-05,2]
[348592868,1736655036041,-500.0,9.997e-05,2]
[348592869,1736655036051,-500.0,9.997e-05,2]
[348592870,1736655036061,-596.15,9.997e-05,2]
[348592871,1736655036070,-500.0,9.997e-05,2]
[348592872,1736655036079,-500.0,9.997e-05,2]
[348592873,1736655036089,-500.0,9.997e-05,2]
[348592874,1736655036098,-500.0,9.997e-05,2]
[348592875,1736655036107,-669.59,9.997e-05,2]
[348592876,1736655036117,-500.0,9.997e-05,2]
[348592877,1736655036128,-500.0,9.997e-05,2]
[348592878,1736655036138,-500.0,9.997e-05,2]
[348592879,1736655036147,-500.0,9.997e-05,2]
[348592880,1736655036157,-500.0,9.997e-05,2]
[348592881,1736655036166,-504.11,9.997e-05,2]
[348592882,1736655036177,-500.0,9.997e-05,2]
[348592883,1736655036185,-500.0,9.997e-05,2]
[348592884,1736655036196,-500.0,9.997e-05,2]
[348592885,1736655036205,-224.65507408,9.997e-05,2]
[348592886,1736655036214,-500.0,9.997e-05,2]
[348592887,1736655036223,-500.0,9.997e-05,2]
[348592888,1736655036233,-505.43888186,9.997e-05,2]
[348592889,1736655036243,-500.0,9.997e-05,2]
[348592890,1736655036254,-500.0,9.997e-05,2]
[348592891,1736655036264,-571.71,9.997e-05,2]
[348592892,1736655036273,-500.0,9.997e-05,2]
[348592893,1736655036283,-500.0,9.997e-05,2]
[348592894,1736655036292,-500.0,9.997e-05,2]
[348592895,1736655036301,-501.5434127,9.997e-05,2]
[348592896,1736655036310,-1482.01,9.997e-05,2]
[348592897,1736655036320,-500.0,9.997e-05,2]
[348592898,1736655036330,-500.0,9.997e-05,2]
[348592899,1736655036340,-504.95319518,9.997e-05,2]
[348592900,1736655036351,-500.0,9.997e-05,2]
[348592901,1736655036361,-515.84,9.997e-05,2]
[348592902,1736655036371,-508.56711051,9.997e-05,2]
[348592903,1736655036380,-500.0,9.997e-05,2]
[348592904,1736655036390,-500.0,9.997e-05,2]
[348592905,1736655036401,-500.0,9.997e-05,2]
[348592906,1736655036410,-500.0,9.997e-05,2]
[348592907,1736655036419,-100.15499159,9.997e-05,2]
[348592908,1736655036465,-408.45059426,9.997e-05,2]
[348592909,1736655036474,-555.61244823,9.997e-05,2]
[348592910,1736655036485,-187.52755177,9.997e-05,2]
[348592911,1736655036494,-500.0,9.997e-05,2]
[348592912,1736655036503,-158.01960346,9.997e-05,2]
[348593091,1736655039466,-379.86091595,9.995e-05,2]
[348593093,1736655039478,-230.52908405,9.995e-05,2]
[348593095,1736655039488,-341.98039654,9.997e-05,2]
[348593097,1736655039498,-2428.33891204,9.997e-05,2]
[348593100,1736655039519,-1320.79108796,9.997e-05,2]
[348593102,1736655039528,-500.0,9.997e-05,2]
[348593104,1736655039539,-486.43393474,9.997e-05,2]
[348593106,1736655039550,-245.69606526,9.997e-05,2]
[348593108,1736655039559,-500.0,9.997e-05,2]
[348593110,1736655039572,-126.4182987,9.997e-05,2]
[348593117,1736655039630,-379.04003179,9.997e-05,2]
[348593119,1736655039639,-17.70615821,9.997e-05,2]
[348593121,1736655039651,-482.29384179,9.997e-05,2]
[348593123,1736655039661,-506.02401464,9.997e-05,2]
[348593125,1736655039670,-505.9800125,9.997e-05,2]
[348593127,1736655039679,-258.3215937,9.997e-05,2]
[348593131,1736655039706,-798.74,9.991e-05,2]
[348593133,1736655039715,-241.6784063,9.997e-05,2]
[348593135,1736655039723,-200.8150187,9.997e-05,2]
[348593139,1736655039744,-299.1849813,9.997e-05,2]
[348593140,1736655039754,-500.0,9.997e-05,2]
[348593142,1736655039763,-167.26203265,9.997e-05,2]
[348593145,1736655039773,-500.0,9.997e-05,2]
[348593147,1736655039782,-500.0,9.997e-05,2]
[348593149,1736655039792,-507.58615335,9.997e-05,2]
[348593150,1736655039801,-294.07171568,9.997e-05,2]
[348593153,1736655039813,-1617.32828432,9.997e-05,2]
[348593155,1736655039822,-718.58,9.997e-05,2]
[348593157,1736655039831,-500.0,9.997e-05,2]
[348593159,1736655039840,-99.26870784,9.997e-05,2]
[348593162,1736655039865,-914.27,9.992e-05,2]
[348593164,1736655039875,-400.73129216,9.997e-05,2]
[348593166,1736655039884,-500.0,9.997e-05,2]
[348593168,1736655039893,-505.34349366,9.997e-05,2]
[348593170,1736655039902,-500.0,9.997e-05,2]
[348593172,1736655039910,-500.0,9.997e-05,2]
[348593174,1736655039919,-500.0,9.997e-05,2]
[348593176,1736655039929,-509.48164724,9.997e-05,2]
[348593178,1736655039938,-500.0,9.997e-05,2]
[348593179,1736655039947,-632.72349093,9.997e-05,2]
[348593180,1736655039956,-500.0,9.997e-05,2]
[348593181,1736655039965,-500.0,9.997e-05,2]
[348593182,1736655039973,-500.0,9.997e-05,2]
[348593183,1736655039983,-500.0,9.997e-05,2]
[348593184,1736655039992,-500.0,9.997e-05,2]
[348593185,1736655040001,-505.07867709,9.997e-05,2]
[348593186,1736655040010,-2211.09,9.997e-05,2]
[348593187,1736655040019,-500.0,9.997e-05,2]
[348593188,1736655040029,-500.0,9.997e-05,2]
[348593190,1736655040039,-279.21072996,9.997e-05,2]
[348593192,1736655040048,-501.86701556,9.997e-05,2]
[348593194,1736655040058,-281.46469434,9.997e-05,2]
[348593196,1736655040070,-224.76690027,9.997e-05,2]
[348593198,1736655040080,-500.0,9.997e-05,2]
[348593200,1736655040090,-500.0,9.997e-05,2]
[348593202,1736655040099,-500.0,9.997e-05,2]
[348593204,1736655040109,-500.0,9.997e-05,2]
[348593206,1736655040118,-500.0,9.997e-05,2]
[348593208,1736655040126,-500.0,9.997e-05,2]
[348593210,1736655040135,-500.0,9.997e-05,2]
[348593212,1736655040146,-500.0,9.997e-05,2]
[348593214,1736655040155,-500.0,9.997e-05,2]
[348593216,1736655040164,-500.0,9.997e-05,2]
[348593218,1736655040174,-500.0,9.997e-05,2]
[348593220,1736655040183,-616.06,9.998e-05,2]
[348593222,1736655040192,-500.0,9.998e-05,2]
[348593224,1736655040202,-286.97946154,9.998e-05,2]
[348593227,1736655040221,-615.53053846,9.998e-05,2]
[348593229,1736655040229,-150.328,9.998e-05,2]
[348593231,1736655040239,-151.908,9.999e-05,2]
[348593233,1736655040247,-150.0,9.999e-05,2]
[348593235,1736655040257,-150.0,9.999e-05,2]
[348593237,1736655040266,-173.633,9.999e-05,2]
[348593239,1736655040276,-150.643,9.999e-05,2]
[348593241,1736655040285,-250.0,9.999e-05,2]
[348593243,1736655040294,-169.833,9.999e-05,2]
[348593245,1736655040303,-150.307,9.999e-05,2]
[348593247,1736655040312,-1268.0,9.999e-05,2]
[348593249,1736655040321,-2016.0,9.999e-05,2]
[348593251,1736655040330,-150.0,9.999e-05,2]
[348593253,1736655040339,-635.0,9.999e-05,2]
[348593255,1736655040347,-566.0,9.999e-05,2]
[348593257,1736655040357,-1861.0,9.999e-05,2]
[348593259,1736655040366,-915.0,9.999e-05,2]
[348593261,1736655040375,-1259.0,9.999e-05,2]
[348593263,1736655040384,-820.0,9.999e-05,2]
[348593265,1736655040393,-1616.18268073,9.999e-05,2]
[348593267,1736655040404,-500.0,9.999e-05,2]
[348593478,1736655042486,-451.88977681,9.992e-05,2]
[348593480,1736655042498,-262.06022319,9.992e-05,2]
[348593482,1736655042507,-619.99,9.997e-05,2]
[348593484,1736655042516,-500.0,9.997e-05,2]
[348593486,1736655042525,-182.29799093,9.997e-05,2]
[348593491,1736655042561,-3305.56,9.992e-05,2]
[348593493,1736655042575,-186.80258069,9.997e-05,2]
[348593495,1736655042585,-544.85131927,9.999e-05,2]
[348593497,1736655042596,-3978.0,9.999e-05,2]
[348593499,1736655042606,-537.0,9.999e-05,2]
[348593501,1736655042616,-824.67,9.999e-05,2]
[348593503,1736655042626,-1190.97,9.999e-05,2]
[348593505,1736655042635,-1290.85,9.999e-05,2]
[348593507,1736655042647,-1580.02,9.999e-05,2]
[348593509,1736655042656,-1220.06,9.999e-05,2]
[348593511,1736655042665,-3251.11610005,9.999e-05,2]
[348593513,1736655042676,-214.17389995,9.999e-05,2]
[348593515,1736655042685,-1355.75,9.999e-05,2]
[348593517,1736655042694,-504.93547246,9.999e-05,2]
[348593519,1736655042704,-547.85,9.999e-05,2]
[348593523,1736655042733,-476.67811274,9.999e-05,2]
[348593525,1736655042745,-537.5564148,9.999e-05,2]
[348593527,1736655042753,-670.53918738,9.999e-05,2]
[348593529,1736655042765,-430.76081262,9.999e-05,2]
[348593532,1736655042774,-500.0,9.999e-05,2]
[348593533,1736655042783,-1242.37,9.999e-05,2]
[348593535,1736655042793,-500.0,9.999e-05,2]
[348593538,1736655042803,-594.01,9.999e-05,2]
[348593540,1736655042813,-1740.49,9.999e-05,2]
[348593542,1736655042822,-500.0,9.999e-05,2]
[348593543,1736655042832,-500.0,9.999e-05,2]
[348593545,1736655042841,-325.02841201,9.999e-05,2]
[348593547,1736655042850,-500.0,9.999e-05,2]
[348593549,1736655042859,-760.63,9.999e-05,2]
[348593551,1736655042868,-1028.75,9.999e-05,2]
[348593553,1736655042878,-700.95,9.999e-05,2]
[348593555,1736655042887,-500.0,9.999e-05,2]
[348593557,1736655042896,-500.0,9.999e-05,2]
[348593560,1736655042905,-500.0,9.999e-05,2]
[348593561,1736655042914,-513.93985675,9.999e-05,2]
[348593564,1736655042924,-1044.91,9.999e-05,2]
[348593565,1736655042934,-1103.3,9.999e-05,2]
[348593567,1736655042943,-524.01,9.999e-05,2]
[348593591,1736655043149,-1147.26,9.999e-05,2]
[348593593,1736655043159,-1141.88,9.999e-05,2]
[348593595,1736655043168,-1438.31,9.999e-05,2]
[348593597,1736655043177,-5830.27947916,0.0001,2]
[348593599,1736655043188,-5269.19988715,0.0001,2]
[348593603,1736655043212,-1947.01661006,0.0001,2]
[348593816,1736655045418,-500.0,9.997e-05,2]
[348593818,1736655045429,-798.15,9.999e-05,2]
[348593820,1736655045439,-941.85370005,0.0001,2]
[348593824,1736655045471,-281.0,0.0001,2]
[348593826,1736655045482,-599.79301425,0.0001,2]
[348593832,1736655045524,-622.15636844,0.0001,2]
[348593839,1736655045584,-4341.79727168,0.0001,2]
[348593841,1736655045595,-2024.8765447,0.0001,2]
[348593847,1736655045635,-708.19877881,0.0001,2]
[348593855,1736655045698,-270.775,0.0001,2]
[348593857,1736655045709,-30902.77133874,0.0001,2]
[348593859,1736655045720,-1005.27946391,0.0001,2]
[348593861,1736655045731,-10555.28592543,0.0001,2]
[348593863,1736655045742,-634.64211387,0.0001,2]
[348593980,1736655204497,500.0,8.464e-05,2]
[348593981,1736655204699,500.0,8.464e-05,2]
[348593983,1736655883832,800.0,8.219e-05,2]
[348593984,1736655883854,467.91,8.219e-05,2]
[348593995,1736656054611,332.09,8e-05,2]
[348593996,1736656054867,800.0,8e-05,2]
[348593997,1736656054889,800.0,8e-05,2]
[348593998,1736656054910,800.0,8e-05,2]
[348593999,1736656054931,800.0,8e-05,2]
[348594000,1736656054952,800.0,8e-05,2]
[348594001,1736656054973,800.0,8e-05,2]
[348594002,1736656054994,800.0,8e-05,2]
[348594003,1736656055015,800.0,8e-05,2]
[348594004,1736656055039,43267.91,8e-05,2]
[348594005,1736656109248,374.61724948,7.888e-05,2]
[348594022,1736656231693,-1000.0,8.802e-05,2]
[348594023,1736656231703,-249.50484018,8.992e-05,2]
[348594024,1736656231749,-0.49515982,8.992e-05,2]
[348594025,1736656231759,-304.06,8.995e-05,2]
[348594026,1736656231768,-1607.21699442,9e-05,2]
[348594027,1736656231777,-250.0,9.016e-05,2]
[348594028,1736656231786,-211.86364074,9.016e-05,2]
[348594029,1736656231796,-344.58,9.024e-05,2]
[348594030,1736656231805,-300.0,9.053e-05,2]
[348594031,1736656231814,-250.0,9.054e-05,2]
[348594032,1736656231823,-15257.93,9.054e-05,2]
[348594033,1736656231832,-200.69271058,9.062e-05,2]
[348594034,1736656231841,-161.35,9.062e-05,2]
[348594035,1736656231851,-1852.42,9.062e-05,2]
[348594036,1736656231859,-184.43,9.088e-05,2]
[348594037,1736656231869,-167.09,9.102e-05,2]
[348594038,1736656231878,-273.79366692,9.222e-05,2]
[348594039,1736656231887,-166.72,9.287e-05,2]
[348594040,1736656231896,-413.633932,9.885e-05,2]
[348594041,1736656231906,-413.633932,9.888e-05,2]
[348594042,1736656231915,-413.633932,9.892e-05,2]
[348594043,1736656231924,-413.633932,9.894e-05,2]
[348594044,1736656231934,-413.633932,9.894e-05,2]
[348594045,1736656231943,-413.633932,9.895e-05,2]
[348594046,1736656231954,-150.0,9.895e-05,2]
[348594047,1736656231965,-413.633932,9.896e-05,2]
[348594048,1736656231974,-413.633932,9.896e-05,2]
[348594049,1736656231984,-413.633932,9.897e-05,2]
[348594050,1736656231994,-6066.925593,9.9e-05,2]
[348594051,1736656232003,-705.6345,9.9e-05,2]
[348594052,1736656232014,-1000.0,9.902e-05,2]
[348594053,1736656232023,-2729.56632719,9.955e-05,2]
[348594054,1736656232033,-500.40674599,9.973e-05,2]
[348594055,1736656232043,-2729.56632719,9.984e-05,2]
[348594060,1736656232273,-2436.978,9.99e-05,2]
[348594062,1736656232286,-162.847,9.99e-05,2]
[348594064,1736656232296,-715.7,9.991e-05,2]
[348594065,1736656232305,-500.0,9.991e-05,2]
[348594066,1736656232314,-500.0,9.991e-05,2]
[348594067,1736656232323,-1059.04,9.991e-05,2]
[348594068,1736656232332,-533.06,9.991e-05,2]
[348594069,1736656232341,-1136.7,9.991e-05,2]
[348594070,1736656232351,-802.7,9.991e-05,2]
[348594071,1736656232361,-1137.83,9.991e-05,2]
[348594072,1736656232370,-1305.09,9.991e-05,2]
[348594073,1736656232379,-1539.31,9.991e-05,2]
[348594074,1736656232389,-2195.68,9.991e-05,2]
[348594075,1736656232398,-5857.81,9.991e-05,2]
[348594076,1736656232407,-929.11,9.991e-05,2]
[348594077,1736656232416,-1204.34,9.992e-05,2]
[348594078,1736656232426,-1357.94,9.992e-05,2]
[348594079,1736656232435,-1607.33,9.992e-05,2]
[348594080,1736656232445,-1227.07,9.992e-05,2]
[348594081,1736656232458,-858.48,9.992e-05,2]
[348594082,1736656232468,-881.93,9.992e-05,2]
[348594083,1736656232477,-500.0,9.995e-05,2]
[348594085,1736656232486,-500.0,9.995e-05,2]
[348594087,1736656232498,-500.0,9.995e-05,2]
[348594089,1736656232507,-567.39,9.995e-05,2]
[348594090,1736656232516,-653.22,9.995e-05,2]
[348594092,1736656232527,-500.0,9.995e-05,2]
[348594093,1736656232536,-568.73,9.995e-05,2]
[348594094,1736656232546,-564.06,9.995e-05,2]
[348594095,1736656232555,-500.0,9.995e-05,2]
[348594096,1736656232564,-500.0,9.995e-05,2]
[348594097,1736656232573,-621.52,9.995e-05,2]
[348594098,1736656232583,-500.0,9.995e-05,2]
[348594099,1736656232592,-500.0,9.995e-05,2]
[348594100,1736656232601,-500.0,9.995e-05,2]
[348594101,1736656232610,-500.0,9.995e-05,2]
[348594102,1736656232619,-500.0,9.995e-05,2]
[348594103,1736656232628,-500.0,9.995e-05,2]
[348594104,1736656232637,-500.0,9.995e-05,2]
[348594105,1736656232647,-500.0,9.995e-05,2]
[348594106,1736656232655,-500.0,9.995e-05,2]
[348594107,1736656232664,-500.0,9.995e-05,2]
[348594108,1736656232674,-701.99,9.995e-05,2]
[348594109,1736656232683,-500.0,9.995e-05,2]
[348594110,1736656232692,-500.0,9.995e-05,2]
[348594111,1736656232701,-500.0,9.995e-05,2]
[348594112,1736656232710,-809.21,9.995e-05,2]
[348594113,1736656232719,-500.0,9.995e-05,2]
[348594114,1736656232728,-500.0,9.995e-05,2]
[348594115,1736656232737,-590.59916567,9.995e-05,2]
[348594116,1736656232746,-566.67,9.995e-05,2]
[348594117,1736656232755,-500.0,9.995e-05,2]
[348594118,1736656232765,-626.3,9.995e-05,2]
[348594119,1736656232775,-500.0,9.995e-05,2]
[348594120,1736656232783,-500.0,9.995e-05,2]
[348594121,1736656232793,-645.64,9.995e-05,2]
[348594122,1736656232803,-500.0,9.995e-05,2]
[348594123,1736656232812,-556.47,9.995e-05,2]
[348594124,1736656232821,-500.0,9.995e-05,2]
[348594125,1736656232831,-500.0,9.995e-05,2]
[348594126,1736656232841,-500.0,9.995e-05,2]
[348594127,1736656232850,-500.0,9.995e-05,2]
[348594128,1736656232859,-500.0,9.995e-05,2]
[348594129,1736656232868,-675.62,9.995e-05,2]
[348594130,1736656232877,-500.0,9.995e-05,2]
[348594131,1736656232887,-574.63,9.995e-05,2]
[348594132,1736656232895,-500.0,9.995e-05,2]
[348594133,1736656232905,-500.0,9.995e-05,2]
[348594134,1736656232914,-500.0,9.995e-05,2]
[348594135,1736656232923,-500.0,9.995e-05,2]
[348594136,1736656232932,-669.97,9.995e-05,2]
[348594137,1736656232941,-616.6,9.995e-05,2]
[348594138,1736656232951,-500.0,9.995e-05,2]
[348594139,1736656232960,-753.64,9.995e-05,2]
[348594140,1736656232969,-865.8,9.995e-05,2]
[348594141,1736656232978,-504.81921946,9.995e-05,2]
[348594142,1736656232988,-500.0,9.995e-05,2]
[348594143,1736656232997,-500.0,9.995e-05,2]
[348594144,1736656233006,-500.0,9.995e-05,2]
[348594145,1736656233015,-500.0,9.995e-05,2]
[348594146,1736656233025,-500.0,9.995e-05,2]
[348594147,1736656233035,-500.0,9.995e-05,2]
[348594148,1736656233044,-500.0,9.995e-05,2]
[348594149,1736656233054,-500.0,9.995e-05,2]
[348594150,1736656233064,-856.05,9.995e-05,2]
[348594151,1736656233074,-771.13,9.995e-05,2]
[348594152,1736656233084,-934.45,9.995e-05,2]
[348594153,1736656233093,-920.51,9.995e-05,2]
[348594154,1736656233103,-538.81,9.995e-05,2]
[348594155,1736656233112,-500.0,9.995e-05,2]
[348594156,1736656233121,-508.73,9.995e-05,2]